[Event "CZE-ch Open 2019"]
[Site "Ostrava"]
[Date "2019.05.04"]
[Round "8.2"]
[White "Kraus, Tomas"]
[Black "Kislinsky, Alexey"]
[Result "1-0"]
[ECO "A67"]
[WhiteElo "2463"]
[BlackElo "2427"]
[Annotator "ChessBase"]
[PlyCount "52"]
[EventDate "2019.04.27"]
[EventType "swiss"]
[EventCountry "CZE"]
[SourceTitle "playchess.com"]
[Source "ChessBase"]
[SourceQuality "1"]
[TimeControl "40/5400+30:1800+30"]

1. d4 {[%emt 0:00:00]} Nf6 {[%emt 0:18:37]} 2. c4 {[%emt 0:00:00]} c5 {[%emt 0:00:28]} 3. d5 {[%emt 0:00:19]} e6 {[%emt 0:00:20]} 4. Nc3 {[%emt 0:00:38]} exd5 {[%emt 0:00:13]} 5. cxd5 {[%emt 0:00:16]} d6 {[%emt 0:00:06]} 6. e4 {[%emt 0:00:53]} g6 {[%emt 0:00:07]} 7. f4 {[%emt 0:00:44]} Bg7 {[%emt 0:01:10]} 8. Bb5+ {[%emt 0:01:05]} Nfd7 {[%emt 0:05:12]} 9. Nf3 {[%emt 0:00:53]} a6 {[%emt 0:02:04]} 10. Bd3 {[%emt 0:01:28]} b5 {[%emt 0:00:44]} 11. O-O {[%emt 0:01:39]} O-O {[%emt 0:01:14]} 12. Qe1 {[%emt 0:13:35]} Re8 {[%emt 0:04:06]} 13. Qg3 {[%emt 0:02:30]} c4 {[%emt 0:04:50]} 14. Bc2 {[%emt 0:01:03]} Nc5 {[%emt 0:00:11]} 15. f5 {[%emt 0:20:34]} b4 {[%emt 0:05:00]} 16. fxg6 {[%emt 0:02:37]} fxg6 {[%emt 0:06:52]} 17. Na4 {[%emt 0:11:31]} Nxe4 {[%emt 0:05:32]} 18. Bxe4 {[%emt 0:00:40]} Rxe4 {[%emt 0:00:09]} 19. Ng5 {[%emt 0:06:26]} Re8 {[%emt 0:04:09]} 20. Nf7 {[%emt 0:10:27]} Qa5 {[%emt 0:01:16]} 21. Bh6 {[%emt 0:07:05]} Qxa4 {[%emt 0:05:02]} 22. Bxg7 {[%emt 0:02:35]} Kxg7 {[%emt 0:00:05]} 23. Qg5 {[%emt 0:03:42]} Nd7 {[%emt 0:00:17]} 24. Qh6+ {[%emt 0:00:47]} Kg8 {[%emt 0:00:05]} 25. Ng5 {[%emt 0:00:19]} Re7 {[%emt 0:00:09]} 26. Rae1 {[%emt 0:00:10]} Nb8 1-0

[Event "CZE-ch Open 2019"]
[Site "Ostrava"]
[Date "2019.05.04"]
[Round "8.3"]
[White "Hracek, Zbynek"]
[Black "Michalik, Peter"]
[Result "1/2-1/2"]
[ECO "C42"]
[WhiteElo "2589"]
[BlackElo "2574"]
[Annotator "ChessBase"]
[PlyCount "67"]
[EventDate "2019.04.27"]
[EventType "swiss"]
[EventCountry "CZE"]
[SourceTitle "playchess.com"]
[Source "ChessBase"]
[SourceQuality "1"]
[TimeControl "40/5400+30:1800+30"]

1. e4 {[%emt 0:00:00]} e5 {[%emt 0:00:00]} 2. Nf3 {[%emt 0:00:00]} Nf6 {[%emt 0:00:00]} 3. Nxe5 {[%emt 0:00:07]} d6 {[%emt 0:00:00]} 4. Nf3 {[%emt 0:00:07]} Nxe4 {[%emt 0:00:00]} 5. Nc3 {[%emt 0:00:30]} Nf6 {[%emt 0:00:00]} 6. d4 {[%emt 0:00:10]} Be7 {[%emt 0:00:06]} 7. Bd3 {[%emt 0:00:14]} O-O {[%emt 0:00:12]} 8. O-O {[%emt 0:00:05]} Re8 {[%emt 0:00:37]} 9. Re1 {[%emt 0:00:16]} b6 {[%emt 0:00:14]} 10. d5 {[%emt 0:14:17]} Bb7 {[%emt 0:00:16]} 11. Bb5 {[%emt 0:05:02]} Nfd7 {[%emt 0:16:07]} 12. Bf4 {[%emt 0:10:55]} a6 {[%emt 0:00:13]} 13. Bf1 {[%emt 0:00:02]} Bf6 {[%emt 0:07:41]} 14. Qd2 {[%emt 0:06:22]} Ne5 {[%emt 0:00:31]} 15. Nxe5 {[%emt 0:09:55]} dxe5 {[%emt 0:01:23]} 16. Bg3 {[%emt 0:00:31]} Bg5 {[%emt 0:07:17]} 17. f4 {[%emt 0:04:32]} exf4 {[%emt 0:06:50]} 18. Rxe8+ {[%emt 0:00:16]} Qxe8 {[%emt 0:00:03]} 19. Bxf4 {[%emt 0:00:06]} Bxf4 {[%emt 0:00:15]} 20. Qxf4 {[%emt 0:00:05]} Qe7 {[%emt 0:07:07]} 21. Rd1 {[%emt 0:01:09]} Qc5+ {[%emt 0:00:12]} 22. Kh1 {[%emt 0:03:12]} Nd7 {[%emt 0:02:42]} 23. Ne4 {[%emt 0:00:37]} Qxc2 {[%emt 0:00:24]} 24. Rc1 {[%emt 0:00:05]} Qxb2 {[%emt 0:00:05]} 25. Rxc7 {[%emt 0:00:08]} Bxd5 {[%emt 0:00:56]} 26. Rxd7 {[%emt 0:01:58]} Bxa2 {[%emt 0:00:29]} 27. h4 {[%emt 0:34:49]} h6 {[%emt 0:00:40]} 28. Nd6 {[%emt 0:02:21]} Qf6 {[%emt 0:02:20]} 29. Qxf6 {[%emt 0:00:42]} gxf6 {[%emt 0:00:04]} 30. Bc4 {[%emt 0:02:41]} Bxc4 {[%emt 0:00:04]} 31. Nxc4 {[%emt 0:00:01]} b5 {[%emt 0:01:38]} 32. Na5 {[%emt 0:03:15]} Re8 {[%emt 0:00:06]} 33. Ra7 {[%emt 0:00:09]} Re4 {[%emt 0:01:05]} 34. g3 1/2-1/2

[Event "CZE-ch Open 2019"]
[Site "Ostrava"]
[Date "2019.05.04"]
[Round "8.4"]
[White "Plat, Vojtech"]
[Black "Babula, Vlastimil"]
[Result "1-0"]
[ECO "B49"]
[WhiteElo "2540"]
[BlackElo "2550"]
[Annotator "ChessBase"]
[PlyCount "67"]
[EventDate "2019.04.27"]
[EventType "swiss"]
[EventCountry "CZE"]
[SourceTitle "playchess.com"]
[Source "ChessBase"]
[SourceQuality "1"]
[TimeControl "40/5400+30:1800+30"]

1. e4 {[%emt 0:00:00]} c5 {[%emt 0:00:00]} 2. Nf3 {[%emt 0:00:00]} e6 {[%emt 0:00:01]} 3. d4 {[%emt 0:00:00]} cxd4 {[%emt 0:00:07]} 4. Nxd4 {[%emt 0:00:00]} Nc6 {[%emt 0:00:23]} 5. Nc3 {[%emt 0:00:14]} Qc7 {[%emt 0:00:26]} 6. Be3 {[%emt 0:00:16]} a6 {[%emt 0:00:38]} 7. Be2 {[%emt 0:00:17]} Nf6 {[%emt 0:00:49]} 8. O-O {[%emt 0:00:15]} Be7 {[%emt 0:00:59]} 9. f4 {[%emt 0:00:17]} d6 {[%emt 0:00:43]} 10. Kh1 {[%emt 0:00:05]} O-O {[%emt 0:01:21]} 11. Qe1 {[%emt 0:00:27]} Nxd4 {[%emt 0:01:24]} 12. Bxd4 {[%emt 0:00:04]} b5 {[%emt 0:00:34]} 13. a3 {[%emt 0:00:05]} Bb7 {[%emt 0:00:47]} 14. Qg3 {[%emt 0:00:05]} Rad8 {[%emt 0:01:25]} 15. Bf3 {[%emt 0:05:00]} Rd7 {[%emt 0:03:14]} 16. Rad1 {[%emt 0:03:49]} Rfd8 {[%emt 0:36:01]} 17. Rfe1 {[%emt 0:06:30]} Qb8 {[%emt 0:13:12]} 18. Rd3 {[%emt 0:04:45]} Ba8 {[%emt 0:00:57]} 19. Red1 {[%emt 0:01:08]} Ne8 {[%emt 0:06:04]} 20. f5 {[%emt 0:01:55]} exf5 {[%emt 0:09:07]} 21. exf5 {[%emt 0:00:14]} d5 {[%emt 0:01:22]} 22. Qxb8 {[%emt 0:01:39]} Rxb8 {[%emt 0:00:03]} 23. Nxd5 {[%emt 0:04:37]} Bxd5 {[%emt 0:01:08]} 24. Be5 {[%emt 0:00:08]} Rc8 {[%emt 0:02:10]} 25. Bxd5 {[%emt 0:01:30]} Bf6 {[%emt 0:01:21]} 26. Bxf6 {[%emt 0:01:06]} Nxf6 {[%emt 0:00:06]} 27. Bb7 {[%emt 0:06:22]} Rxc2 {[%emt 0:02:00]} 28. Rxd7 {[%emt 0:00:11]} Nxd7 {[%emt 0:00:02]} 29. h3 {[%emt 0:00:04]} Nf8 {[%emt 0:01:43]} 30. b4 {[%emt 0:01:09]} Rf2 {[%emt 0:04:36]} 31. Rd5 {[%emt 0:03:38]} g6 {[%emt 0:00:09]} 32. fxg6 {[%emt 0:02:05]} Rf6 {[%emt 0:04:27]} 33. gxh7+ {[%emt 0:00:55]} Kxh7 {[%emt 0:00:25]} 34. Rf5 {[%emt 0:05:58]} 1-0

[Event "CZE-ch Open 2019"]
[Site "Ostrava"]
[Date "2019.05.04"]
[Round "8.6"]
[White "Miesbauer, Jan"]
[Black "Kriebel, Tadeas"]
[Result "1/2-1/2"]
[ECO "A28"]
[WhiteElo "2407"]
[BlackElo "2523"]
[Annotator "RC"]
[PlyCount "128"]
[EventDate "2019.04.27"]
[EventType "swiss"]
[EventCountry "CZE"]
[SourceTitle "playchess.com"]
[Source "ChessBase"]
[SourceQuality "1"]
[TimeControl "40/5400+30:1800+30"]

1. c4 {[%emt 0:00:00]} e5 {[%emt 0:00:00]} 2. Nc3 {[%emt 0:00:00]} Nf6 {[%emt 0:00:00]} 3. Nf3 {[%emt 0:01:42]} Nc6 {[%emt 0:00:05]} 4. d4 {[%emt 0:00:28]} exd4 {[%emt 0:01:05]} 5. Nxd4 {[%emt 0:00:06]} Bb4 {[%emt 0:00:15]} 6. Bg5 {[%emt 0:01:12]} O-O {[%emt 0:00:49]} 7. Rc1 {[%emt 0:03:52]} h6 {[%emt 0:03:27]} 8. Bh4 {[%emt 0:02:36]} Re8 {[%emt 0:09:08]} 9. e3 {[%emt 0:04:42]} Nxd4 {[%emt 0:21:40]} 10. Qxd4 {[%emt 0:00:19]} g5 {[%emt 0:00:03]} 11. Bg3 {[%emt 0:00:10]} c5 {[%emt 0:00:07]} 12. Qd1 {[%emt 0:15:00]} b5 {[%emt 0:00:58]} 13. a3 {[%emt 0:08:19]} Ba5 {[%emt 0:07:26]} 14. Qd6 {[%emt 0:16:51]} Bb7 {[%emt 0:21:29]} 15. Be2 {[%emt 0:08:22]} Re6 {[%emt 0:02:35]} 16. Qxc5 {[%emt 0:02:46]} Bxg2 {[%emt 0:08:36]} 17. Rg1 {[%emt 0:00:28]} Ne4 {[%emt 0:00:15]} 18. Qd4 {[%emt 0:02:26]} Nxc3 {[%emt 0:08:06]} 19. bxc3 {[%emt 0:02:02]} Be4 {[%emt 0:00:03]} 20. c5 {[%emt 0:06:46]} Bc6 {[%emt 0:03:05]} 21. h4 {[%emt 0:01:03]} Re4 {[%emt 0:00:42]} 22. Qd6 {[%emt 0:03:57]} Re6 {[%emt 0:00:05]} 23. Qd4 {[%emt 0:00:46]} Re4 {[%emt 0:00:04]} 24. Qd3 {[%emt 0:03:18]} Qf6 {[%emt 0:05:07]} 25. hxg5 {[%emt 0:01:26]} hxg5 {[%emt 0:00:01]} 26. Bf4 {[%emt 0:02:19]} Rxf4 {[%emt 0:00:01]} 27. exf4 {[%emt 0:00:06]} Qxf4 {[%emt 0:00:03]} 28. Qd2 {[%emt 0:02:20]} Bc7 {[%emt 0:02:03]} 29. Rxg5+ {[%emt 0:07:10]} Kf8 {[%emt 0:00:01]} 30. Rg4 {[%emt 0:00:26]} Qh2 {[%emt 0:00:02]} 31. Qg5 {[%emt 0:00:54]} Re8 {[%emt 0:00:19]} 32. Rd1 {[%emt 0:02:09]} Re5 {[%emt 0:05:12]} 33. Qg7+ {[%emt 0:01:03]} Ke7 {[%emt 0:00:01]} 34. Rd3 {[%emt 0:00:47]} Qh1+ {[%emt 0:00:39]} 35. Rg1 {[%emt 0:00:34]} Qe4 {[%emt 0:02:06]} 36. Re3 {[%emt 0:00:22]} Qb1+ {[%emt 0:01:16]} 37. Bd1 {[%emt 0:00:04]} Rxe3+ {[%emt 0:00:49]} 38. fxe3 {[%emt 0:00:02]} Qe4 {[%emt 0:00:36]} 39. Qd4 {[%emt 0:02:00]} Qh7 {[%emt 0:00:32]} 40. Bb3 {[%emt 0:00:35]} Qb1+ {[%emt 0:00:30]} 41. Bd1 {[%emt 0:01:57]} Qh7 {[%emt 0:00:58]} 42. Rf1 {[%emt 0:05:27]} Bg3+ {[%emt 0:07:37]} 43. Kd2 {[%emt 0:00:34]} Qh2+ {[%emt 0:00:19]} 44. Kc1 {[%emt 0:00:39]} Be5 {[%emt 0:00:17]} 45. Qd2 {[%emt 0:00:28]} Qh3 {[%emt 0:02:54]} 46. Qf2 {[%emt 0:01:26]} f6 {[%emt 0:05:52]} 47. Bf3 {[%emt 0:10:23]} Bxf3 {[%emt 0:00:26]} 48. Qxf3 {[%emt 0:00:05]} Qe6 {[%emt 0:00:03]} 49. Rh1 {[%emt 0:01:21]} Qc4 {[%emt 0:02:02]} 50. Rh7+ {[%emt 0:00:45]} Ke6 {[%emt 0:00:16]} 51. Qh3+ {[%emt 0:00:35]} f5 {[%emt 0:00:05]} 52. Rh6+ {[%emt 0:03:16]} Bf6 {[%emt 0:00:12]} 53. Rxf6+ {[%emt 0:01:03]} Kxf6 {[%emt 0:00:05]} 54. Qh6+ {[%emt 0:02:05]} Ke5 {[%emt 0:02:58]} 55. Qd6+ {[%emt 0:00:34]} Ke4 {[%emt 0:00:04]} 56. Qf4+ {[%emt 0:00:41]} Kd3 {[%emt 0:03:04]} 57. Qxf5+ {[%emt 0:00:15]} Kxe3 {[%emt 0:00:09]} 58. Kb2 {[%emt 0:02:03]} Qe2+ {[%emt 0:04:31]} 59. Kb3 {[%emt 0:01:03]} Qd1+ {[%emt 0:02:18]} 60. Kb2 {[%emt 0:00:06]} Qd3 {[%emt 0:02:21]} 61. Qh3+ {[%emt 0:01:14]} Kd2 {[%emt 0:01:17]} 62. Qh6+ {[%emt 0:00:57]} Kd1 {[%emt 0:00:37]} 63. Qh1+ {[%emt 0:00:15]} Kd2 {[%emt 0:00:20]} 64. Qh6+ {[%emt 0:00:05]} Kd1 {[%emt 0:00:07]} 1/2-1/2

[Event "CZE-ch Open 2019"]
[Site "Ostrava"]
[Date "2019.05.04"]
[Round "8.7"]
[White "Mikes, Jan"]
[Black "Kociscak, Jiri"]
[Result "1/2-1/2"]
[ECO "C45"]
[WhiteElo "2395"]
[BlackElo "2505"]
[Annotator "ChessBase"]
[PlyCount "79"]
[EventDate "2019.04.27"]
[EventType "swiss"]
[EventCountry "CZE"]
[SourceTitle "playchess.com"]
[Source "ChessBase"]
[SourceQuality "1"]
[TimeControl "40/5400+30:1800+30"]

1. e4 {[%emt 0:00:00]} e5 {[%emt 0:00:43]} 2. Nf3 {[%emt 0:00:00]} Nc6 {[%emt 0:00:34]} 3. d4 {[%emt 0:00:00]} exd4 {[%emt 0:00:07]} 4. Nxd4 {[%emt 0:00:00]} Nf6 {[%emt 0:01:44]} 5. Nxc6 {[%emt 0:01:27]} bxc6 {[%emt 0:00:10]} 6. e5 {[%emt 0:00:06]} Qe7 {[%emt 0:00:11]} 7. Qe2 {[%emt 0:00:13]} Nd5 {[%emt 0:00:05]} 8. c4 {[%emt 0:00:14]} Nb6 {[%emt 0:01:19]} 9. Nc3 {[%emt 0:00:24]} a5 {[%emt 0:01:00]} 10. Qe4 {[%emt 0:06:25]} Qe6 {[%emt 0:05:54]} 11. Bd3 {[%emt 0:03:54]} Bb4 {[%emt 0:00:51]} 12. Bd2 {[%emt 0:00:37]} Bb7 {[%emt 0:31:33]} 13. f4 {[%emt 0:04:50]} O-O-O {[%emt 0:08:57]} 14. O-O-O {[%emt 0:09:18]} g6 {[%emt 0:10:07]} 15. Rhe1 {[%emt 0:08:37]} d5 {[%emt 0:18:33]} 16. exd6 {[%emt 0:23:35]} Qxd6 {[%emt 0:00:06]} 17. Bf1 {[%emt 0:02:01]} f5 {[%emt 0:04:24]} 18. Qe6+ {[%emt 0:07:37]} Qxe6 {[%emt 0:00:05]} 19. Rxe6 {[%emt 0:00:03]} Rhe8 {[%emt 0:00:07]} 20. Rxe8 {[%emt 0:00:49]} Rxe8 {[%emt 0:00:04]} 21. Re1 {[%emt 0:00:04]} Rxe1+ {[%emt 0:03:17]} 22. Bxe1 {[%emt 0:00:05]} Ba6 {[%emt 0:00:14]} 23. b3 {[%emt 0:06:45]} Nd5 {[%emt 0:01:24]} 24. Nxd5 {[%emt 0:09:11]} cxd5 {[%emt 0:02:15]} 25. Bxb4 {[%emt 0:03:19]} axb4 {[%emt 0:00:05]} 26. Kb2 {[%emt 0:00:09]} c5 {[%emt 0:01:19]} 27. a3 {[%emt 0:02:56]} bxa3+ {[%emt 0:01:56]} 28. Kxa3 {[%emt 0:00:05]} Kc7 {[%emt 0:00:06]} 29. g3 {[%emt 0:05:22]} Kb6 {[%emt 0:00:35]} 30. Bd3 {[%emt 0:02:03]} Ka5 {[%emt 0:01:39]} 31. Be2 {[%emt 0:03:18]} d4 {[%emt 0:04:25]} 32. Bf3 {[%emt 0:00:34]} Bc8 {[%emt 0:00:53]} 33. Bd5 {[%emt 0:00:24]} Bd7 {[%emt 0:00:07]} 34. h4 {[%emt 0:00:53]} Be8 {[%emt 0:00:52]} 35. Bg8 {[%emt 0:00:29]} h5 {[%emt 0:00:47]} 36. Bd5 {[%emt 0:00:11]} d3 {[%emt 0:00:16]} 37. Kb2 {[%emt 0:01:09]} Kb4 {[%emt 0:00:05]} 38. Be6 {[%emt 0:00:03]} Bc6 {[%emt 0:00:42]} 39. Bd5 {[%emt 0:00:18]} Be8 {[%emt 0:00:07]} 40. Be6 {[%emt 0:00:04]} 1/2-1/2

[Event "CZE-ch Open 2019"]
[Site "Ostrava"]
[Date "2019.05.04"]
[Round "8.8"]
[White "Simacek, Pavel"]
[Black "Blatny, Pavel"]
[Result "1-0"]
[ECO "B06"]
[WhiteElo "2476"]
[BlackElo "2328"]
[Annotator "ChessBase"]
[PlyCount "77"]
[EventDate "2019.04.27"]
[EventType "swiss"]
[EventCountry "CZE"]
[SourceTitle "playchess.com"]
[Source "ChessBase"]
[SourceQuality "1"]
[TimeControl "40/5400+30:1800+30"]

1. e4 {[%emt 0:00:00]} g6 {[%emt 0:00:00]} 2. d4 {[%emt 0:00:00]} Bg7 {[%emt 0:00:00]} 3. Nf3 {[%emt 0:01:09]} d6 {[%emt 0:00:56]} 4. Bd3 {[%emt 0:03:35]} e5 {[%emt 0:05:03]} 5. h3 {[%emt 0:07:44]} exd4 {[%emt 0:03:55]} 6. Nxd4 {[%emt 0:02:33]} Nd7 {[%emt 0:00:12]} 7. Nb3 {[%emt 0:05:11]} a5 {[%emt 0:02:55]} 8. a4 {[%emt 0:01:14]} b6 {[%emt 0:00:02]} 9. O-O {[%emt 0:02:39]} Bb7 {[%emt 0:00:29]} 10. Nc3 {[%emt 0:06:28]} Ne7 {[%emt 0:02:39]} 11. Bg5 {[%emt 0:04:38]} h6 {[%emt 0:00:30]} 12. Be3 {[%emt 0:00:07]} O-O {[%emt 0:01:42]} 13. Qd2 {[%emt 0:01:31]} Kh7 {[%emt 0:00:15]} 14. Rae1 {[%emt 0:15:01]} Ne5 {[%emt 0:04:32]} 15. Bb5 {[%emt 0:03:37]} g5 {[%emt 0:03:16]} 16. Nd4 {[%emt 0:01:58]} c5 {[%emt 0:03:04]} 17. Nde2 {[%emt 0:02:22]} f5 {[%emt 0:07:09]} 18. f4 {[%emt 0:00:36]} fxe4 {[%emt 0:24:21]} 19. fxe5 {[%emt 0:00:28]} d5 {[%emt 0:00:14]} 20. Rxf8 {[%emt 0:02:58]} Qxf8 {[%emt 0:03:24]} 21. Rf1 {[%emt 0:00:05]} Qg8 {[%emt 0:00:36]} 22. Nxe4 {[%emt 0:00:52]} dxe4 {[%emt 0:03:48]} 23. Qd7 {[%emt 0:00:07]} Nd5 {[%emt 0:01:21]} 24. Qxb7 {[%emt 0:08:23]} Rb8 {[%emt 0:00:07]} 25. Qc6 {[%emt 0:00:15]} Rc8 {[%emt 0:00:16]} 26. Qd7 {[%emt 0:00:16]} Nxe3 {[%emt 0:00:27]} 27. Rf7 {[%emt 0:01:17]} Rf8 {[%emt 0:03:16]} 28. e6 {[%emt 0:00:47]} Kg6 {[%emt 0:21:43]} 29. Rxg7+ {[%emt 0:01:20]} Qxg7 {[%emt 0:00:08]} 30. Qxg7+ {[%emt 0:00:04]} Kxg7 {[%emt 0:00:05]} 31. e7 {[%emt 0:00:03]} Rb8 {[%emt 0:02:02]} 32. e8=Q {[%emt 0:00:09]} Rxe8 {[%emt 0:00:18]} 33. Bxe8 {[%emt 0:00:04]} Nxc2 {[%emt 0:00:50]} 34. Nc3 {[%emt 0:00:26]} e3 {[%emt 0:00:43]} 35. Kf1 {[%emt 0:00:06]} Kf6 {[%emt 0:00:17]} 36. Ke2 {[%emt 0:00:13]} Kf5 {[%emt 0:02:42]} 37. g3 {[%emt 0:02:42]} g4 {[%emt 0:03:45]} 38. h4 {[%emt 0:00:07]} Ke5 {[%emt 0:01:02]} 39. Bg6 {[%emt 0:00:16] Kd5} 1-0

[Event "CZE-ch Open 2019"]
[Site "Ostrava"]
[Date "2019.05.04"]
[Round "8.9"]
[White "Mrazek, Lumir"]
[Black "Zwardon, Vojtech"]
[Result "1-0"]
[ECO "B30"]
[WhiteElo "2344"]
[BlackElo "2458"]
[Annotator "ChessBase"]
[PlyCount "79"]
[EventDate "2019.04.27"]
[EventType "swiss"]
[EventCountry "CZE"]
[SourceTitle "playchess.com"]
[Source "ChessBase"]
[SourceQuality "1"]
[TimeControl "40/5400+30:1800+30"]

1. e4 c5 2. Nf3 Nc6 3. c3 Nf6 4. d3 g6 5. Be2 Bg7 6. O-O d5 7. Qc2 O-O 8. h3 Qc7 9. Re1 b6 10. Nbd2 e6 11. Nf1 Ba6 12. e5 Nd7 13. d4 Qb7 14. Bg5 Rfc8 15. Qd2 cxd4 16. cxd4 Na5 17. b3 Bxe2 18. Rxe2 Qa6 19. Rae1 Rc7 20. Ne3 Rac8 21. Ng4 Rc3 22. Bh6 Qd3 23. Qg5 Qf5 24. Qh4 Qh5 25. Qe7 Bxh6 26. Qxd7 Bg7 27. Qxa7 R3c6 28. Nf6+ Bxf6 29. exf6 R8c7 30. Qa6 Qh6 31. Ne5 Rd6 32. Qd3 Qf4 33. Rc2 Rxc2 34. Qxc2 Rd8 35. Qc7 Rf8 36. Qxb6 Qd2 37. Re3 Qxa2 38. Qb4 Qb1+ 39. Re1 Qa2 40. Rc1 1-0

[Event "CZE-ch Open 2019"]
[Site "Ostrava"]
[Date "2019.05.04"]
[Round "8.10"]
[White "Pulpan, Jakub"]
[Black "Hausner, Ivan"]
[Result "0-1"]
[ECO "C03"]
[WhiteElo "2426"]
[BlackElo "2351"]
[Annotator "NA"]
[PlyCount "60"]
[EventDate "2019.04.27"]
[EventType "swiss"]
[EventCountry "CZE"]
[SourceTitle "playchess.com"]
[Source "ChessBase"]
[SourceQuality "1"]
[TimeControl "40/5400+30:1800+30"]

1. e4 {[%emt 0:00:00]} e6 {[%emt 0:00:00]} 2. d4 {[%emt 0:00:20]} d5 {[%emt 0:00:00]} 3. Nd2 {[%emt 0:03:04]} Be7 {[%emt 0:00:27]} 4. Ngf3 {[%emt 0:04:12]} Nf6 {[%emt 0:00:11]} 5. e5 {[%emt 0:01:27]} Nfd7 {[%emt 0:00:07]} 6. Bd3 {[%emt 0:00:07]} c5 {[%emt 0:00:06]} 7. c3 {[%emt 0:00:14]} Nc6 {[%emt 0:00:06]} 8. O-O {[%emt 0:01:08]} a5 {[%emt 0:00:08]} 9. a4 {[%emt 0:00:12]} b6 {[%emt 0:00:04]} 10. Qe2 {[%emt 0:11:30]} cxd4 {[%emt 0:00:56]} 11. cxd4 {[%emt 0:01:33]} Nb4 {[%emt 0:00:05]} 12. Bb5 {[%emt 0:00:50]} Ba6 {[%emt 0:00:06]} 13. Bxa6 {[%emt 0:01:30]} Nxa6 {[%emt 0:00:29]} 14. Nb1 {[%emt 0:03:12]} O-O {[%emt 0:03:29]} 15. Nc3 {[%emt 0:00:35]} Qc8 {[%emt 0:04:58]} 16. Bg5 {[%emt 0:03:13]} Bxg5 {[%emt 0:00:22]} 17. Nxg5 {[%emt 0:00:11]} h6 {[%emt 0:00:02]} 18. Nh3 {[%emt 0:02:54]} Qc4 {[%emt 0:00:34]} 19. Qd2 {[%emt 0:12:41]} Nb4 {[%emt 0:02:16]} 20. Nf4 {[%emt 0:04:11]} Rfc8 {[%emt 0:00:18]} 21. Rfe1 {[%emt 0:02:11]} Nf8 {[%emt 0:04:36]} 22. Rac1 {[%emt 0:03:01]} Qb3 {[%emt 0:04:31]} 23. Re3 {[%emt 0:06:25]} Na2 {[%emt 0:00:21]} 24. Rce1 {[%emt 0:03:41]} Nxc3 {[%emt 0:01:41]} 25. bxc3 {[%emt 0:02:10]} Ng6 {[%emt 0:02:13]} 26. Nh5 {[%emt 0:06:27]} Rc4 {[%emt 0:04:25]} 27. Rh3 {[%emt 0:09:56]} Rac8 {[%emt 0:01:36]} 28. Rc1 {[%emt 0:02:48]} Qa3 {[%emt 0:03:31]} 29. g4 {[%emt 0:06:33]} Rxd4 {[%emt 0:01:26]} 30. Nf6+ {[%emt 0:06:10]} Kf8 {[%emt 0:00:35]} 0-1

[Event "CZE-ch Open 2019"]
[Site "Ostrava"]
[Date "2019.05.04"]
[Round "8.11"]
[White "Stocek, Jiri"]
[Black "Serrano Salvador, Eduardo"]
[Result "1-0"]
[ECO "D43"]
[WhiteElo "2558"]
[BlackElo "2324"]
[Annotator "RC"]
[PlyCount "123"]
[EventDate "2019.04.27"]
[EventType "swiss"]
[EventCountry "CZE"]
[SourceTitle "playchess.com"]
[Source "ChessBase"]
[SourceQuality "1"]
[TimeControl "40/5400+30:1800+30"]

1. d4 d5 2. c4 c6 3. Nf3 Nf6 4. Nc3 e6 5. Qb3 dxc4 6. Qxc4 b5 7. Qd3 Bb7 8. e4 b4 9. Na4 Qa5 10. b3 c5 11. Ne5 Bxe4 12. Qb5+ Qxb5 13. Bxb5+ Nbd7 14. f3 Bd5 15. Nxc5 Bxc5 16. dxc5 Rb8 17. Ba4 Ke7 18. Nd3 Rhc8 19. Bf4 e5 20. Bg3 Nxc5 21. Nxc5 Rxc5 22. Bxe5 Rd8 23. Bd4 Rc2 24. O-O Bc6 25. Rad1 Rd6 26. Rf2 Rxf2 27. Bc5 Rc2 28. Bxd6+ Ke6 29. Bxc6 Rxc6 30. Bxb4 Nd5 31. Be1 Rc2 32. Rd2 Rc1 33. Kf2 Nc3 34. a4 Rb1 35. Rd3 Rb2+ 36. Kf1 Nd5 37. Bd2 f5 38. g3 g6 39. h4 h5 40. Ke1 Rb1+ 41. Ke2 a6 42. a5 Ke5 43. b4 f4 44. Kf2 fxg3+ 45. Kxg3 Rb2 46. Be1 Rg2+ 47. Kxg2 Nf4+ 48. Kg3 Nxd3 49. b5 Nc5 50. Bf2 Ne6 51. bxa6 Nc7 52. a7 Kf5 53. Bb6 Na8 54. Bd8 Ke5 55. Kf2 Kd4 56. Ke2 Ke5 57. Ke3 Kf5 58. Kd4 Ke6 59. Ke4 Kd7 60. Bb6 Ke6 61. Kf4 Kf7 62. Kg5 1-0